[Event "Live Chess"]
[Site "Chess.com"]
[Date "2023.05.21"]
[Round "-"]
[White "Conradical12"]
[Black "jumush"]
[Result "1/2-1/2"]
[WhiteElo "1572"]
[BlackElo "1773"]
[TimeControl "300"]
[EndTime "4:35:38 PDT"]
[Termination "Game drawn by repetition"]

1. e4 {[%clk 0:04:58.4]} 1... d5 {[%clk 0:04:57.9]} 2. exd5 {[%clk 0:04:57]}
2... Qxd5 {[%clk 0:04:56.3]} 3. Nc3 {[%clk 0:04:56.6]} 3... Qa5 {[%clk
0:04:54.5]} 4. b4 {[%clk 0:04:55.7]} 4... Qxb4 {[%clk 0:04:51.6]} 5. Nb5 {[%clk
0:04:55.3]} 5... Na6 {[%clk 0:04:46.9]} 6. a3 {[%clk 0:04:47.7]} 6... Qe4+
{[%clk 0:04:44.6]} 7. Be2 {[%clk 0:04:41.6]} 7... c6 {[%clk 0:04:42.2]} 8. Nc3
{[%clk 0:04:37.6]} 8... Qxg2 {[%clk 0:04:40.4]} 9. Bf3 {[%clk 0:04:36.1]} 9...
Qg6 {[%clk 0:04:38.5]} 10. Rb1 {[%clk 0:04:30.5]} 10... Qe6+ {[%clk 0:04:33.6]}
11. Nge2 {[%clk 0:04:28.4]} 11... Nf6 {[%clk 0:04:31.8]} 12. d3 {[%clk
0:04:18.8]} 12... g6 {[%clk 0:04:29.9]} 13. Be3 {[%clk 0:04:15.7]} 13... Bg7
{[%clk 0:04:27.9]} 14. h4 {[%clk 0:04:13.9]} 14... h5 {[%clk 0:04:26]} 15. Qd2
{[%clk 0:04:12.1]} 15... Ng4 {[%clk 0:04:23.1]} 16. Bxg4 {[%clk 0:04:10.3]}
16... Qxg4 {[%clk 0:04:21.5]} 17. Ne4 {[%clk 0:03:46.6]} 17... Qf3 {[%clk
0:04:06]} 18. Rg1 {[%clk 0:03:39.3]} 18... Qf5 {[%clk 0:04:00.4]} 19. N2g3
{[%clk 0:03:30.5]} 19... Qe6 {[%clk 0:03:53.1]} 20. Ng5 {[%clk 0:03:27.9]} 20...
Qd6 {[%clk 0:03:44.6]} 21. N3e4 {[%clk 0:03:23.6]} 21... Qxa3 {[%clk 0:03:42.2]}
22. Qe2 {[%clk 0:03:04.1]} 22... f5 {[%clk 0:03:37.2]} 23. Qf3 {[%clk
0:02:57.5]} 23... O-O {[%clk 0:03:28.5]} 24. Rd1 {[%clk 0:02:42.3]} 24... fxe4
{[%clk 0:03:24.4]} 25. Qxe4 {[%clk 0:02:40.6]} 25... Nc5 {[%clk 0:03:15.8]} 26.
Qxg6 {[%clk 0:02:38.7]} 26... Bf5 {[%clk 0:03:08.1]} 27. Qxh5 {[%clk 0:02:30.9]}
27... Qc3+ {[%clk 0:03:00.1]} 28. Kf1 {[%clk 0:02:24.9]} 28... Qxc2 {[%clk
0:02:56.8]} 29. Bxc5 {[%clk 0:02:10]} 29... Qxc5 {[%clk 0:02:53.3]} 30. Ne4
{[%clk 0:02:06.6]} 30... Qe5 {[%clk 0:02:29.3]} 31. Qg5 {[%clk 0:01:57.1]} 31...
Rad8 {[%clk 0:02:21.3]} 32. f4 {[%clk 0:01:55.2]} 32... Qb2 {[%clk 0:02:04.3]}
33. Rg2 {[%clk 0:01:45.4]} 33... Bxe4 {[%clk 0:02:02.1]} 34. Rxb2 {[%clk
0:01:38.6]} 34... Bxd3+ {[%clk 0:01:56]} 35. Kg1 {[%clk 0:01:34.8]} 35... Rd5
{[%clk 0:01:42.6]} 36. Qg4 {[%clk 0:01:25.5]} 36... Bf5 {[%clk 0:01:39.3]} 37.
Qe2 {[%clk 0:01:04.9]} 37... Rxd1+ {[%clk 0:01:37.3]} 38. Qxd1 {[%clk
0:01:03.1]} 38... Bxb2 {[%clk 0:01:35.7]} 39. Qb3+ {[%clk 0:01:01.1]} 39... e6
{[%clk 0:01:29.3]} 40. Qxb2 {[%clk 0:00:59.6]} 40... Rf7 {[%clk 0:01:28]} 41.
Qe5 {[%clk 0:00:57]} 41... Rg7+ {[%clk 0:01:25.9]} 42. Kh2 {[%clk 0:00:52.8]}
42... Kh7 {[%clk 0:01:24.5]} 43. Qd4 {[%clk 0:00:47.2]} 43... a6 {[%clk
0:01:22]} 44. Qd8 {[%clk 0:00:42.3]} 44... b5 {[%clk 0:01:13.7]} 45. Qb6 {[%clk
0:00:39.5]} 45... Be4 {[%clk 0:01:12]} 46. Qxa6 {[%clk 0:00:32.3]} 46... Rg2+
{[%clk 0:01:10.2]} 47. Kh3 {[%clk 0:00:29.6]} 47... Bd5 {[%clk 0:01:08.9]} 48.
Qb7+ {[%clk 0:00:26.8]} 48... Rg7 {[%clk 0:01:06.8]} 49. Qc8 {[%clk 0:00:19.4]}
49... b4 {[%clk 0:01:03.7]} 50. Qe8 {[%clk 0:00:19]} 50... b3 {[%clk 0:01:01.4]}
51. Qh5+ {[%clk 0:00:18.5]} 51... Kg8 {[%clk 0:00:59.7]} 52. Qe8+ {[%clk
0:00:18.1]} 52... Kh7 {[%clk 0:00:58.6]} 53. Qh5+ {[%clk 0:00:17.8]} 53... Kg8
{[%clk 0:00:56.8]} 54. Qe8+ {[%clk 0:00:17.5]} 54... Kh7 {[%clk 0:00:55.7]}
1/2-1/2

[Event "Live Chess"]
[Site "Chess.com"]
[Date "2023.05.21"]
[Round "-"]
[White "Biranidun"]
[Black "Ian-Morley"]
[Result "1-0"]
[WhiteElo "2533"]
[BlackElo "1042"]
[TimeControl "300"]
[EndTime "4:35:51 PDT"]
[Termination "Biranidun won by resignation"]

1. e4 {[%clk 0:04:59.2]} 1... e5 {[%clk 0:04:56.1]} 2. Nf3 {[%clk 0:04:58.2]}
2... Nc6 {[%clk 0:04:54.9]} 3. Bc4 {[%clk 0:04:57.6]} 3... Nf6 {[%clk
0:04:53.8]} 4. Ng5 {[%clk 0:04:56.8]} 4... d5 {[%clk 0:04:52.9]} 5. exd5 {[%clk
0:04:56.7]} 5... Na5 {[%clk 0:04:49.5]} 6. Bb5+ {[%clk 0:04:56]} 6... c6 {[%clk
0:04:48.4]} 7. dxc6 {[%clk 0:04:55.9]} 7... bxc6 {[%clk 0:04:41.7]} 8. Bd3
{[%clk 0:04:54.9]} 8... Bd6 {[%clk 0:04:39.4]} 9. O-O {[%clk 0:04:53.5]} 9... h6
{[%clk 0:04:33.7]} 10. Ne4 {[%clk 0:04:51.8]} 10... Nxe4 {[%clk 0:04:33]} 11.
Bxe4 {[%clk 0:04:51.7]} 11... Bd7 {[%clk 0:04:30.3]} 12. d4 {[%clk 0:04:46.4]}
12... Nc4 {[%clk 0:04:19.2]} 13. dxe5 {[%clk 0:04:44.3]} 13... Bxe5 {[%clk
0:04:16.6]} 14. Qe2 {[%clk 0:04:42.3]} 14... Nd6 {[%clk 0:04:14.5]} 15. Bxc6
{[%clk 0:04:40.1]} 15... Bxc6 {[%clk 0:04:13.2]} 16. Qxe5+ {[%clk 0:04:38.9]}
16... Qe7 {[%clk 0:04:12.3]} 17. Qxe7+ {[%clk 0:04:34.9]} 17... Kxe7 {[%clk
0:04:11.1]} 18. Nc3 {[%clk 0:04:34.7]} 18... Kd7 {[%clk 0:04:03.2]} 19. Re1
{[%clk 0:04:34.6]} 19... Rhe8 {[%clk 0:04:02.2]} 20. Bf4 {[%clk 0:04:34.5]}
20... Rxe1+ {[%clk 0:03:58]} 21. Rxe1 {[%clk 0:04:34.4]} 21... Kc7 {[%clk
0:03:51.1]} 22. Rd1 {[%clk 0:04:32.9]} 22... Rd8 {[%clk 0:03:49]} 23. Rxd6
{[%clk 0:04:30.8]} 23... Rxd6 {[%clk 0:03:48.2]} 24. Bxd6+ {[%clk 0:04:30.7]}
24... Kxd6 {[%clk 0:03:47.7]} 25. f3 {[%clk 0:04:30.6]} 25... g6 {[%clk
0:03:42.2]} 26. Kf2 {[%clk 0:04:30.1]} 26... f6 {[%clk 0:03:41.6]} 27. Ke3
{[%clk 0:04:30]} 27... a6 {[%clk 0:03:39.1]} 28. Kd4 {[%clk 0:04:29.1]} 28...
Ba8 {[%clk 0:03:35.4]} 29. Ne4+ {[%clk 0:04:28.4]} 29... Ke6 {[%clk 0:03:33.6]}
30. Nc5+ {[%clk 0:04:27]} 30... Kd6 {[%clk 0:03:29.6]} 31. Nxa6 {[%clk
0:04:26.9]} 31... g5 {[%clk 0:03:27.4]} 32. c4 {[%clk 0:04:26.1]} 32... g4
{[%clk 0:03:26.5]} 33. c5+ {[%clk 0:04:26]} 33... Ke7 {[%clk 0:03:22.5]} 34.
fxg4 {[%clk 0:04:24.8]} 34... Bxg2 {[%clk 0:03:21.4]} 35. b4 {[%clk 0:04:24]}
35... Bh3 {[%clk 0:03:20.4]} 36. b5 {[%clk 0:04:21.2]} 36... Bxg4 {[%clk
0:03:19.5]} 37. b6 {[%clk 0:04:19.6]} 37... Bc8 {[%clk 0:03:18.4]} 38. Nb4
{[%clk 0:04:18]} 38... Bb7 {[%clk 0:03:16.5]} 39. c6 {[%clk 0:04:17.4]} 1-0

[Event "Live Chess"]
[Site "Chess.com"]
[Date "2023.05.21"]
[Round "-"]
[White "Abde2012"]
[Black "Greenbecker"]
[Result "0-1"]
[WhiteElo "752"]
[BlackElo "1685"]
[TimeControl "300"]
[EndTime "4:35:58 PDT"]
[Termination "Greenbecker won by resignation"]

1. d4 {[%clk 0:04:55.6]} 1... d5 {[%clk 0:04:58.1]} 2. c4 {[%clk 0:04:52.8]}
2... e6 {[%clk 0:04:56.4]} 3. e3 {[%clk 0:04:51]} 3... Bb4+ {[%clk 0:04:55.3]}
4. Bd2 {[%clk 0:04:48.9]} 4... Bxd2+ {[%clk 0:04:52.9]} 5. Nxd2 {[%clk
0:04:48.2]} 5... Nf6 {[%clk 0:04:52]} 6. Ngf3 {[%clk 0:04:44.5]} 6... O-O {[%clk
0:04:50.9]} 7. cxd5 {[%clk 0:04:44]} 7... exd5 {[%clk 0:04:49.3]} 8. Bb5 {[%clk
0:04:42.7]} 8... c6 {[%clk 0:04:47.5]} 9. Bd3 {[%clk 0:04:38.3]} 9... Bg4 {[%clk
0:04:46.2]} 10. O-O {[%clk 0:04:31.6]} 10... Nbd7 {[%clk 0:04:44.9]} 11. h3
{[%clk 0:04:29.1]} 11... Bh5 {[%clk 0:04:43.3]} 12. Be2 {[%clk 0:04:22.5]} 12...
Re8 {[%clk 0:04:41]} 13. Ng5 {[%clk 0:04:20.5]} 13... Bxe2 {[%clk 0:04:38.8]}
14. Qxe2 {[%clk 0:04:18.8]} 14... h6 {[%clk 0:04:37.9]} 15. Ngf3 {[%clk
0:04:16.2]} 15... Ne4 {[%clk 0:04:37]} 16. Nxe4 {[%clk 0:04:13.8]} 16... dxe4
{[%clk 0:04:36.2]} 17. Ne5 {[%clk 0:04:13.2]} 17... Nxe5 {[%clk 0:04:34.9]} 18.
dxe5 {[%clk 0:04:12]} 18... Rxe5 {[%clk 0:04:34.1]} 19. Qg4 {[%clk 0:04:09.4]}
19... Qg5 {[%clk 0:04:28.1]} 20. Qxg5 {[%clk 0:04:06.8]} 20... Rxg5 {[%clk
0:04:26]} 21. Rad1 {[%clk 0:04:00.5]} 21... Rd5 {[%clk 0:04:24.5]} 22. Rxd5
{[%clk 0:03:58.6]} 22... cxd5 {[%clk 0:04:23.4]} 23. Rd1 {[%clk 0:03:56.9]}
23... Rd8 {[%clk 0:04:22.3]} 24. f4 {[%clk 0:03:54.4]} 24... Kf8 {[%clk
0:04:21.6]} 25. b4 {[%clk 0:03:49.6]} 25... Ke7 {[%clk 0:04:19.2]} 26. a4 {[%clk
0:03:48.9]} 26... Ke6 {[%clk 0:04:18.3]} 27. Kf2 {[%clk 0:03:48]} 27... Rc8
{[%clk 0:04:16.6]} 28. Kg3 {[%clk 0:03:47.6]} 28... Rc4 {[%clk 0:04:15.4]} 29.
Rb1 {[%clk 0:03:43.7]} 29... Rc3 {[%clk 0:04:14.3]} 30. Kf2 {[%clk 0:03:40.5]}
30... Ra3 {[%clk 0:04:13.3]} 31. a5 {[%clk 0:03:30.8]} 31... Ra2+ {[%clk
0:04:10]} 32. Kg3 {[%clk 0:03:28.1]} 32... f5 {[%clk 0:04:04.9]} 33. b5 {[%clk
0:03:21.1]} 33... Rxa5 {[%clk 0:04:02.7]} 34. b6 {[%clk 0:03:19.3]} 34... a6
{[%clk 0:03:48.6]} 35. h4 {[%clk 0:03:14.5]} 35... Rb5 {[%clk 0:03:47.4]} 36.
Rxb5 {[%clk 0:03:12.3]} 36... axb5 {[%clk 0:03:46.7]} 37. Kf2 {[%clk 0:03:09.3]}
37... Kd6 {[%clk 0:03:45.8]} 38. Ke2 {[%clk 0:03:08.8]} 38... Kc6 {[%clk
0:03:45.1]} 39. Kd2 {[%clk 0:03:08.5]} 39... Kxb6 {[%clk 0:03:44.4]} 40. Kc3
{[%clk 0:03:08]} 40... Kc5 {[%clk 0:03:43.4]} 41. Kb3 {[%clk 0:03:06.2]} 41...
d4 {[%clk 0:03:41.5]} 42. exd4+ {[%clk 0:03:03.7]} 42... Kxd4 {[%clk 0:03:40.7]}
43. Kb4 {[%clk 0:03:02.9]} 43... e3 {[%clk 0:03:39.7]} 44. Kxb5 {[%clk
0:03:01.2]} 44... e2 {[%clk 0:03:38.8]} 45. Kb6 {[%clk 0:03:00.8]} 45... e1=Q
{[%clk 0:03:37.8]} 46. Kxb7 {[%clk 0:03:00.4]} 46... Qg3 {[%clk 0:03:35.4]} 0-1

[Event "Live Chess"]
[Site "Chess.com"]
[Date "2023.05.21"]
[Round "-"]
[White "JanMur7"]
[Black "Nakula1000"]
[Result "0-1"]
[WhiteElo "1973"]
[BlackElo "722"]
[TimeControl "300"]
[EndTime "4:36:02 PDT"]
[Termination "Nakula1000 won by resignation"]

1. e4 {[%clk 0:04:58.5]} 1... e5 {[%clk 0:04:58.2]} 2. Nf3 {[%clk 0:04:57.5]}
2... Nc6 {[%clk 0:04:56.6]} 3. Nc3 {[%clk 0:04:56.8]} 3... Nf6 {[%clk
0:04:55.1]} 4. Nxe5 {[%clk 0:04:55.9]} 4... Nxe5 {[%clk 0:04:53.9]} 5. d4 {[%clk
0:04:55.5]} 5... Nc6 {[%clk 0:04:53]} 6. d5 {[%clk 0:04:54.8]} 6... Bb4 {[%clk
0:04:50.8]} 7. d6 {[%clk 0:04:53.1]} 7... Bxc3+ {[%clk 0:04:50.7]} 8. bxc3
{[%clk 0:04:52.1]} 8... O-O {[%clk 0:04:47.8]} 9. Bd3 {[%clk 0:04:49.9]} 9...
cxd6 {[%clk 0:04:46.3]} 10. O-O {[%clk 0:04:48.8]} 10... Qa5 {[%clk 0:04:43.9]}
11. Qf3 {[%clk 0:04:42.3]} 11... Re8 {[%clk 0:04:40.8]} 12. Bb2 {[%clk
0:04:39.6]} 12... b6 {[%clk 0:04:37.9]} 13. c4 {[%clk 0:04:37.7]} 13... Ne5
{[%clk 0:04:36]} 14. Qg3 {[%clk 0:04:33.2]} 14... Qc5 {[%clk 0:04:31.8]} 15. Kh1
{[%clk 0:04:26.5]} 15... Nh5 {[%clk 0:04:29.6]} 16. Qg5 {[%clk 0:04:21.2]} 16...
Nxd3 {[%clk 0:04:26.2]} 17. Qg4 {[%clk 0:04:13.2]} 17... Nxb2 {[%clk 0:04:24.3]}
18. f4 {[%clk 0:04:07.7]} 18... Nf6 {[%clk 0:04:19.2]} 19. Qg3 {[%clk 0:04:01]}
19... Nxe4 {[%clk 0:04:17.6]} 20. Qf3 {[%clk 0:03:56.7]} 20... Nxc4 {[%clk
0:04:14.7]} 21. Rae1 {[%clk 0:03:53.1]} 21... Ncd2 {[%clk 0:04:13.3]} 22. Qg4
{[%clk 0:03:49.3]} 22... Nf2+ {[%clk 0:04:10.4]} 23. Kg1 {[%clk 0:03:45.7]}
23... Nxg4+ {[%clk 0:04:09.1]} 24. Kh1 {[%clk 0:03:44.7]} 24... Nf2+ {[%clk
0:04:07.6]} 25. Kg1 {[%clk 0:03:42.8]} 25... Nd3+ {[%clk 0:04:06.2]} 26. Kh1
{[%clk 0:03:41.6]} 26... Nxe1 {[%clk 0:04:05.3]} 27. h3 {[%clk 0:03:39.4]} 27...
Nxf1 {[%clk 0:04:03.9]} 0-1

[Event "Live Chess"]
[Site "Chess.com"]
[Date "2023.05.21"]
[Round "-"]
[White "TheSmoulderingMaster"]
[Black "wot-not"]
[Result "1-0"]
[WhiteElo "1633"]
[BlackElo "1552"]
[TimeControl "300"]
[EndTime "4:36:09 PDT"]
[Termination "TheSmoulderingMaster won by resignation"]

1. e4 {[%clk 0:04:57.5]} 1... e6 {[%clk 0:04:56.8]} 2. d4 {[%clk 0:04:56.2]}
2... d5 {[%clk 0:04:56.6]} 3. Nc3 {[%clk 0:04:54.3]} 3... Nf6 {[%clk 0:04:55.5]}
4. Bg5 {[%clk 0:04:51.5]} 4... Bb4 {[%clk 0:04:54.4]} 5. e5 {[%clk 0:04:49]}
5... h6 {[%clk 0:04:53.6]} 6. Bh4 {[%clk 0:04:46.4]} 6... g5 {[%clk 0:04:51]} 7.
Bg3 {[%clk 0:04:45.4]} 7... Ne4 {[%clk 0:04:48.2]} 8. Ne2 {[%clk 0:04:43.8]}
8... c5 {[%clk 0:04:43.3]} 9. a3 {[%clk 0:04:41.4]} 9... Bxc3+ {[%clk
0:04:39.3]} 10. Nxc3 {[%clk 0:04:38.9]} 10... Nxc3 {[%clk 0:04:37.1]} 11. bxc3
{[%clk 0:04:38.2]} 11... Qa5 {[%clk 0:04:34.8]} 12. Qd3 {[%clk 0:04:34.8]} 12...
Nc6 {[%clk 0:04:28.9]} 13. Be2 {[%clk 0:04:33.1]} 13... cxd4 {[%clk 0:04:26.6]}
14. O-O {[%clk 0:04:30.4]} 14... Qxc3 {[%clk 0:04:25.1]} 15. Qb5 {[%clk
0:04:27.7]} 15... Qxc2 {[%clk 0:04:14.5]} 16. Rac1 {[%clk 0:04:25.1]} 16... Qe4
{[%clk 0:03:59.9]} 17. Bf3 {[%clk 0:04:20.7]} 17... Qg6 {[%clk 0:03:47.4]} 18.
Rxc6 {[%clk 0:04:18.8]} 18... bxc6 {[%clk 0:03:31.1]} 19. Qxc6+ {[%clk
0:04:17.8]} 19... Ke7 {[%clk 0:03:28.5]} 20. Qxa8 {[%clk 0:04:16.3]} 20... h5
{[%clk 0:03:26.4]} 21. Qxa7+ {[%clk 0:04:12.6]} 21... Kf8 {[%clk 0:03:25.5]} 22.
Qc5+ {[%clk 0:04:09.5]} 22... Kg7 {[%clk 0:03:23.9]} 23. h4 {[%clk 0:04:04]}
23... gxh4 {[%clk 0:03:09.6]} 24. Bxh4 {[%clk 0:04:01.2]} 24... Ba6 {[%clk
0:02:48.7]} 25. Rc1 {[%clk 0:03:51.7]} 25... Bc4 {[%clk 0:02:44.3]} 26. Bf6+
{[%clk 0:03:49.6]} 26... Kh7 {[%clk 0:02:41.3]} 27. Bxh8 {[%clk 0:03:48.3]}
27... Kxh8 {[%clk 0:02:40.7]} 28. Qf8+ {[%clk 0:03:45.4]} 28... Kh7 {[%clk
0:02:39.1]} 29. a4 {[%clk 0:03:36.2]} 29... d3 {[%clk 0:02:38.4]} 30. a5 {[%clk
0:03:23.7]} 30... h4 {[%clk 0:02:31]} 31. Qd6 {[%clk 0:03:03.5]} 31... Qg5
{[%clk 0:02:23.9]} 32. Qa3 {[%clk 0:02:49.9]} 32... h3 {[%clk 0:02:20.5]} 33. a6
{[%clk 0:02:42.2]} 33... Bxa6 {[%clk 0:02:13.5]} 34. Rc7 {[%clk 0:02:35]} 34...
Bc4 {[%clk 0:01:37.8]} 35. Rxf7+ {[%clk 0:02:31.9]} 35... Kh6 {[%clk 0:01:36.4]}
36. Qf8+ {[%clk 0:02:27.2]} 36... Kg6 {[%clk 0:01:33.7]} 37. Rg7+ {[%clk
0:02:25.4]} 1-0

[Event "Live Chess"]
[Site "Chess.com"]
[Date "2023.05.21"]
[Round "-"]
[White "EdenHazard8"]
[Black "LiamBellwood"]
[Result "1-0"]
[WhiteElo "1934"]
[BlackElo "1892"]
[TimeControl "300"]
[EndTime "4:36:24 PDT"]
[Termination "EdenHazard8 won by resignation"]

1. e4 {[%clk 0:04:59.2]} 1... e6 {[%clk 0:04:59.9]} 2. d4 {[%clk 0:04:58.2]}
2... d5 {[%clk 0:04:59.8]} 3. Nd2 {[%clk 0:04:56.8]} 3... Nc6 {[%clk 0:04:58.7]}
4. Ngf3 {[%clk 0:04:54.9]} 4... e5 {[%clk 0:04:58.3]} 5. exd5 {[%clk 0:04:53]}
5... Qxd5 {[%clk 0:04:55.1]} 6. Bc4 {[%clk 0:04:52.2]} 6... Qd6 {[%clk
0:04:47.7]} 7. dxe5 {[%clk 0:04:50.5]} 7... Nxe5 {[%clk 0:04:45.6]} 8. O-O
{[%clk 0:04:47.6]} 8... Nxf3+ {[%clk 0:04:34.6]} 9. Nxf3 {[%clk 0:04:45.4]} 9...
Qxd1 {[%clk 0:04:33.4]} 10. Rxd1 {[%clk 0:04:45.3]} 10... Bg4 {[%clk 0:04:11.2]}
11. Bf4 {[%clk 0:04:41]} 11... Bxf3 {[%clk 0:04:05]} 12. gxf3 {[%clk 0:04:40.9]}
12... c6 {[%clk 0:03:58.6]} 13. Re1+ {[%clk 0:04:36]} 13... Be7 {[%clk
0:03:48.1]} 14. Re3 {[%clk 0:04:34.7]} 14... Rd8 {[%clk 0:03:17.3]} 15. Rae1
{[%clk 0:04:32.3]} 15... Rd4 {[%clk 0:03:12.2]} 16. Be5 {[%clk 0:04:29.9]} 16...
Rxc4 {[%clk 0:03:05.9]} 17. Bxg7 {[%clk 0:04:28.5]} 17... Rxc2 {[%clk
0:02:58.1]} 18. Bxh8 {[%clk 0:04:26.5]} 1-0

[Event "Live Chess"]
[Site "Chess.com"]
[Date "2023.05.21"]
[Round "-"]
[White "LL220284LL"]
[Black "Twickenham2014"]
[Result "1-0"]
[WhiteElo "2334"]
[BlackElo "2277"]
[TimeControl "300"]
[EndTime "4:36:26 PDT"]
[Termination "LL220284LL won by resignation"]

1. e3 {[%clk 0:04:58.3]} 1... d5 {[%clk 0:04:50.5]} 2. b3 {[%clk 0:04:56.9]}
2... c5 {[%clk 0:04:49.2]} 3. Bb2 {[%clk 0:04:55.7]} 3... Nc6 {[%clk 0:04:48.9]}
4. Nf3 {[%clk 0:04:54.5]} 4... Nf6 {[%clk 0:04:48.2]} 5. d4 {[%clk 0:04:53.4]}
5... e6 {[%clk 0:04:47.2]} 6. Be2 {[%clk 0:04:51.5]} 6... Be7 {[%clk 0:04:45.3]}
7. O-O {[%clk 0:04:50.4]} 7... O-O {[%clk 0:04:44.9]} 8. Nbd2 {[%clk 0:04:48.4]}
8... Re8 {[%clk 0:04:44]} 9. c4 {[%clk 0:04:47.1]} 9... b6 {[%clk 0:04:41.9]}
10. Rc1 {[%clk 0:04:45.2]} 10... Bb7 {[%clk 0:04:41.4]} 11. cxd5 {[%clk
0:04:44.3]} 11... exd5 {[%clk 0:04:39.7]} 12. Re1 {[%clk 0:04:42.3]} 12... Rc8
{[%clk 0:04:37.8]} 13. Rc2 {[%clk 0:04:39.4]} 13... Nb4 {[%clk 0:04:36]} 14. Rc1
{[%clk 0:04:32.7]} 14... Nxa2 {[%clk 0:04:35.4]} 15. Ra1 {[%clk 0:04:31.4]}
15... Nb4 {[%clk 0:04:34]} 16. Rxa7 {[%clk 0:04:30.5]} 16... Ba8 {[%clk
0:04:29.2]} 17. Bb5 {[%clk 0:04:28]} 17... Nc6 {[%clk 0:04:27.7]} 18. Rxa8
{[%clk 0:04:25.8]} 18... Rxa8 {[%clk 0:04:23]} 19. Bxc6 {[%clk 0:04:25.3]} 19...
Qc7 {[%clk 0:04:21.2]} 20. Bxe8 {[%clk 0:04:23]} 20... Rxe8 {[%clk 0:04:18.3]}
21. dxc5 {[%clk 0:04:21.8]} 21... bxc5 {[%clk 0:04:16.8]} 22. e4 {[%clk
0:04:20.1]} 22... d4 {[%clk 0:04:14.4]} 23. Nc4 {[%clk 0:04:18.6]} 23... h5
{[%clk 0:04:11.7]} 24. b4 {[%clk 0:04:14.3]} 24... Rd8 {[%clk 0:04:06.8]} 25.
bxc5 {[%clk 0:04:12.7]} 25... Qxc5 {[%clk 0:04:04.5]} 26. Ba3 {[%clk 0:04:10.6]}
26... Qc7 {[%clk 0:03:53.8]} 27. Bxe7 {[%clk 0:04:09.6]} 27... Qxe7 {[%clk
0:03:53.7]} 28. e5 {[%clk 0:04:07.6]} 28... Ng4 {[%clk 0:03:51.6]} 29. h3 {[%clk
0:04:04.5]} 29... Nh6 {[%clk 0:03:50.6]} 30. Nd6 {[%clk 0:04:01.6]} 30... Qe6
{[%clk 0:03:41.9]} 31. Qxd4 {[%clk 0:03:58.7]} 31... Nf5 {[%clk 0:03:39.6]} 32.
Qf4 {[%clk 0:03:53.7]} 32... Ne7 {[%clk 0:03:31.5]} 33. Nd4 {[%clk 0:03:49]}
33... Qa2 {[%clk 0:03:24.9]} 34. e6 {[%clk 0:03:44.8]} 34... f6 {[%clk 0:03:21]}
35. N4f5 {[%clk 0:03:40]} 35... Nxf5 {[%clk 0:03:17.4]} 36. Nxf5 {[%clk
0:03:38.4]} 36... Qa5 {[%clk 0:03:14]} 37. Re3 {[%clk 0:03:30.3]} 37... g5
{[%clk 0:03:07.8]} 38. Qc4 {[%clk 0:03:20.8]} 38... Rd1+ {[%clk 0:03:01]} 39.
Kh2 {[%clk 0:03:19.7]} 39... Qxf5 {[%clk 0:02:31.6]} 40. e7+ {[%clk 0:03:16.5]}
40... Kh7 {[%clk 0:02:25.7]} 41. e8=Q {[%clk 0:03:09.9]} 1-0

[Event "Live Chess"]
[Site "Chess.com"]
[Date "2023.05.21"]
[Round "-"]
[White "elephantgerrald"]
[Black "CheckThis4"]
[Result "0-1"]
[WhiteElo "686"]
[BlackElo "2509"]
[TimeControl "300"]
[EndTime "4:36:36 PDT"]
[Termination "CheckThis4 won by checkmate"]

1. e4 {[%clk 0:04:58.1]} 1... d5 {[%clk 0:04:56.5]} 2. exd5 {[%clk 0:04:56.3]}
2... Nf6 {[%clk 0:04:55.8]} 3. Nc3 {[%clk 0:04:53.4]} 3... Nxd5 {[%clk
0:04:54.3]} 4. Nxd5 {[%clk 0:04:47.6]} 4... Qxd5 {[%clk 0:04:54.2]} 5. d4 {[%clk
0:04:36.4]} 5... Nc6 {[%clk 0:04:52.3]} 6. c3 {[%clk 0:04:29.7]} 6... e5 {[%clk
0:04:50.4]} 7. dxe5 {[%clk 0:04:19]} 7... Qxd1+ {[%clk 0:04:48.6]} 8. Kxd1
{[%clk 0:04:17]} 8... Nxe5 {[%clk 0:04:44.6]} 9. Bf4 {[%clk 0:04:15.5]} 9... Bd6
{[%clk 0:04:40.9]} 10. Rc1 {[%clk 0:03:57.2]} 10... Bg4+ {[%clk 0:04:38.1]} 11.
f3 {[%clk 0:03:55.5]} 11... Bf5 {[%clk 0:04:34.1]} 12. Kd2 {[%clk 0:03:46.9]}
12... O-O-O {[%clk 0:04:32.1]} 13. Rd1 {[%clk 0:03:41.2]} 13... Rhe8 {[%clk
0:04:23.6]} 14. Bxe5 {[%clk 0:03:38.6]} 14... Bxe5+ {[%clk 0:04:20.6]} 15. Kc1
{[%clk 0:03:37.4]} 15... Bf4+ {[%clk 0:04:19.5]} 16. Rd2 {[%clk 0:03:27.3]}
16... Re1# {[%clk 0:04:15.5]} 0-1